fUSD/lending_fUSD_20250109
["ID","MTS","AMOUNT","RATE_DAILY","PERIOD"]
[348267431,1736427048227,-500.0,0.00010546,2]
[348267432,1736427048237,-500.0,0.00010546,2]
[348267433,1736427048246,-572.12,0.00010546,2]
[348267434,1736427048256,-554.2,0.00010546,2]
[348267435,1736427048266,-632.85,0.00010546,2]
[348267436,1736427048276,-500.0,0.00010546,2]
[348267437,1736427048286,-608.06,0.00010546,2]
[348267438,1736427048299,-500.0,0.00010546,2]
[348267439,1736427048310,-512.7,0.00010546,2]
[348267440,1736427048320,-501.20527677,0.00010546,2]
[348267441,1736427048330,-500.0,0.00010546,2]
[348267442,1736427048340,-500.0,0.00010546,2]
[348267443,1736427048350,-1233.81,0.00010546,2]
[348267444,1736427048359,-500.0,0.00010546,2]
[348267445,1736427048369,-643.51,0.00010546,2]
[348267446,1736427048379,-500.0,0.00010546,2]
[348267447,1736427048390,-500.0,0.00010546,2]
[348267448,1736427048399,-794.210395,0.00010546,2]
[348267449,1736427048409,-500.0,0.00010546,2]
[348267450,1736427048419,-500.0,0.00010546,2]
[348267451,1736427048429,-500.0,0.00010546,2]
[348267452,1736427048439,-610.65,0.00010546,2]
[348267453,1736427048449,-500.0,0.00010546,2]
[348267454,1736427048459,-593.61,0.00010546,2]
[348267455,1736427048469,-500.0,0.00010546,2]
[348267456,1736427048479,-500.0,0.00010546,2]
[348267457,1736427048489,-500.0,0.00010546,2]
[348267458,1736427048499,-500.0,0.00010546,2]
[348267459,1736427048509,-500.0,0.00010546,2]
[348267460,1736427048519,-500.0,0.00010546,2]
[348267461,1736427048528,-500.0,0.00010546,2]
[348267462,1736427048538,-500.0,0.00010546,2]
[348267463,1736427048549,-500.0,0.00010546,2]
[348267464,1736427048559,-500.0,0.00010546,2]
[348267465,1736427048569,-500.0,0.00010546,2]
[348267466,1736427048579,-577.050466,0.00010546,2]
[348267467,1736427048589,-500.0,0.00010546,2]
[348267468,1736427048599,-500.0,0.00010546,2]
[348267469,1736427048609,-500.0,0.00010546,2]
[348267470,1736427048619,-500.0,0.00010546,2]
[348267471,1736427048629,-500.0,0.00010546,2]
[348267472,1736427048639,-500.0,0.00010546,2]
[348267473,1736427048649,-532.1,0.00010546,2]
[348267474,1736427048659,-500.0,0.00010546,2]
[348267475,1736427048670,-500.0,0.00010546,2]
[348267476,1736427048679,-508.62,0.00010546,2]
[348267477,1736427048689,-500.0,0.00010546,2]
[348267478,1736427048699,-500.0,0.00010546,2]
[348267479,1736427048709,-500.0,0.00010546,2]
[348267480,1736427048720,-500.0,0.00010546,2]
[348267481,1736427048730,-500.0,0.00010546,2]
[348267482,1736427048740,-500.0,0.00010546,2]
[348267483,1736427048750,-500.0,0.00010546,2]
[348267484,1736427048760,-500.0,0.00010546,2]
[348267485,1736427048770,-231.22,0.00010546,2]
[348267486,1736427048781,-573.87,0.00010546,2]
[348267487,1736427048790,-500.0,0.00010546,2]
[348267488,1736427048802,-670.66,0.00010546,2]
[348267489,1736427048813,-500.0,0.00010546,2]
[348267490,1736427048824,-500.0,0.00010546,2]
[348267491,1736427048834,-1301.35,0.00010546,2]
[348267492,1736427048846,-500.0,0.00010546,2]
[348267493,1736427048856,-500.0,0.00010546,2]
[348267494,1736427048866,-500.0,0.00010546,2]
[348267495,1736427048877,-500.0,0.00010546,2]
[348267496,1736427048891,-628.84,0.00010546,2]
[348267497,1736427048900,-500.0,0.00010546,2]
[348267498,1736427048910,-500.0,0.00010546,2]
[348267499,1736427048921,-500.0,0.00010546,2]
[348267500,1736427048933,-385.02,0.00010546,2]
[348267501,1736427048943,-539.71,0.00010546,2]
[348267502,1736427048954,-597.75,0.00010546,2]
[348267503,1736427048965,-500.0,0.00010546,2]
[348267504,1736427048976,-500.0,0.00010546,2]
[348267505,1736427048987,-1113.99,0.00010546,2]
[348267506,1736427048997,-500.0,0.00010546,2]
[348267507,1736427049007,-2516.02,0.00010546,2]
[348267508,1736427049017,-606.94,0.00010546,2]
[348267509,1736427049027,-500.0,0.00010546,2]
[348267510,1736427049037,-451.71,0.00010546,2]
[348267511,1736427049049,-500.0,0.00010546,2]
[348267512,1736427049059,-500.0,0.00010546,2]
[348267513,1736427049069,-500.0,0.00010546,2]
[348267514,1736427049080,-500.0,0.00010546,2]
[348267515,1736427049252,-181.77,0.00010546,2]
[348267516,1736427049266,-500.0,0.00010546,2]
[348267517,1736427049277,-500.0,0.00010547,2]
[348267518,1736427049286,-212.03,0.00010547,2]
[348267519,1736427049297,-160.09,0.00010547,2]
[348267520,1736427049307,-500.0,0.00010547,2]
[348267521,1736427049316,-235.32,0.00010547,2]
[348267522,1736427049326,-500.0,0.00010547,2]
[348267523,1736427049336,-500.0,0.00010547,2]
[348267524,1736427049346,-500.0,0.00010547,2]
[348267525,1736427049356,-500.0,0.00010547,2]
[348267526,1736427049366,-432.06,0.00010547,2]
[348267527,1736427049375,-500.0,0.00010547,2]
[348267528,1736427049385,-277.64,0.00010547,2]
[348267529,1736427049395,-500.0,0.00010547,2]
[348267530,1736427049404,-500.0,0.00010547,2]
[348267531,1736427049413,-500.0,0.00010547,2]
[348267532,1736427049423,-1000.0,0.00010607,2]
[348267533,1736427049433,-1844.84,0.00010815,2]
[348267534,1736427049442,-813.62,0.00010815,2]
[348267535,1736427049453,-779.72,0.00010815,2]
[348267536,1736427049462,-500.0,0.00010815,2]
[348267537,1736427049472,-500.0,0.00010815,2]
[348267538,1736427049481,-500.0,0.00010815,2]
[348267539,1736427049491,-500.0,0.00010815,2]
[348267540,1736427049501,-433.18,0.00010815,2]
[348267541,1736427049511,-500.0,0.00010815,2]
[348267542,1736427049522,-315.48,0.00010815,2]
[348267543,1736427049533,-829.41,0.00010815,2]
[348267544,1736427049543,-166.6,0.00010815,2]
[348267545,1736427049554,-500.0,0.00010815,2]
[348267546,1736427049564,-500.0,0.00010815,2]
[348267547,1736427049574,-262.78,0.00010815,2]
[348267548,1736427049583,-568.63,0.00010815,2]
[348267549,1736427049593,-500.0,0.00010815,2]
[348267550,1736427049604,-1239.83,0.00010815,2]
[348267551,1736427049613,-677.84,0.00010815,2]
[348267552,1736427049623,-500.0,0.00010815,2]
[348267553,1736427049632,-500.0,0.00010815,2]
[348267554,1736427049642,-500.0,0.00010816,2]
[348267555,1736427049653,-665.68,0.00010816,2]
[348267556,1736427049663,-500.0,0.00010816,2]
[348267557,1736427049672,-169.87,0.00010816,2]
[348267558,1736427049682,-500.0,0.00010816,2]
[348267559,1736427049691,-512.09,0.00010816,2]
[348267560,1736427049700,-500.0,0.00010816,2]
[348267561,1736427049710,-500.0,0.0001082,2]
[348267562,1736427049719,-264.71,0.0001082,2]
[348267563,1736427049728,-500.0,0.0001082,2]
[348267564,1736427049737,-500.0,0.0001082,2]
[348267565,1736427049746,-500.0,0.0001082,2]
[348267566,1736427049756,-500.0,0.0001082,2]
[348267567,1736427049765,-317.77,0.0001082,2]
[348267568,1736427049775,-500.0,0.0001082,2]
[348267569,1736427049784,-500.0,0.0001082,2]
[348267570,1736427049793,-306.49,0.0001082,2]
[348267571,1736427049804,-500.0,0.0001082,2]
[348267572,1736427049813,-406.24,0.0001082,2]
[348267573,1736427049823,-185.73,0.0001082,2]
[348267574,1736427049833,-500.0,0.0001082,2]
[348267575,1736427049844,-500.0,0.0001082,2]
[348267576,1736427049854,-333.08,0.0001082,2]
[348267577,1736427049864,-500.0,0.0001082,2]
[348267578,1736427049873,-357.38,0.0001082,2]
[348267579,1736427049885,-500.0,0.0001082,2]
[348267580,1736427049896,-501.35445546,0.0001082,2]
[348267581,1736427049906,-500.0,0.0001082,2]
[348267582,1736427049917,-170.32,0.0001082,2]
[348267583,1736427049929,-500.0,0.0001082,2]
[348267584,1736427049941,-477.74,0.0001082,2]
[348267585,1736427049951,-500.0,0.0001082,2]
[348267586,1736427049964,-184.94,0.0001082,2]
[348267587,1736427049974,-500.0,0.0001082,2]
[348267588,1736427049984,-500.0,0.0001082,2]
[348267589,1736427049994,-500.0,0.0001082,2]
[348267590,1736427050003,-500.0,0.0001082,2]
[348267591,1736427050012,-597.38,0.0001082,2]
[348267592,1736427050022,-500.0,0.0001082,2]
[348267593,1736427050031,-500.0,0.0001082,2]
[348267594,1736427050041,-500.0,0.0001082,2]
[348267595,1736427050053,-264.56,0.0001082,2]
[348267596,1736427050063,-568.16,0.0001082,2]
[348267597,1736427050072,-500.0,0.0001082,2]
[348267598,1736427050082,-550.27,0.0001082,2]
[348267599,1736427050093,-500.0,0.0001082,2]
[348267600,1736427050105,-500.0,0.0001082,2]
[348267601,1736427050117,-209.55,0.0001082,2]
[348267602,1736427050129,-506.91,0.0001082,2]
[348267603,1736427050139,-169.07,0.0001082,2]
[348267604,1736427050148,-500.0,0.0001082,2]
[348267605,1736427050157,-257.9,0.0001082,2]
[348267606,1736427050167,-887.9,0.0001082,2]
[348267607,1736427050176,-550.54,0.0001082,2]
[348267608,1736427050186,-467.34,0.0001082,2]
[348267609,1736427050196,-177.88,0.0001082,2]
[348267610,1736427050206,-360.01,0.0001082,2]
[348267611,1736427050217,-500.0,0.0001082,2]
[348267612,1736427050227,-500.0,0.0001082,2]
[348267613,1736427050237,-500.0,0.0001082,2]
[348267614,1736427050248,-632.85,0.0001082,2]
[348267615,1736427050258,-164.06,0.0001082,2]
[348267616,1736427050268,-500.0,0.0001082,2]
[348267617,1736427050277,-1233.81,0.0001082,2]
[348267618,1736427050287,-326.78,0.0001082,2]
[348267619,1736427050298,-500.0,0.0001082,2]
[348267620,1736427050307,-794.210395,0.0001082,2]
[348267621,1736427050317,-394.46,0.0001082,2]
[348267622,1736427050327,-576.42,0.0001082,2]
[348267623,1736427050336,-500.0,0.0001082,2]
[348267624,1736427050346,-610.65,0.0001082,2]
[348267625,1736427050355,-500.0,0.0001082,2]
[348267626,1736427050365,-500.0,0.0001082,2]
[348267627,1736427050374,-500.0,0.0001082,2]
[348267628,1736427050384,-387.14,0.0001082,2]
[348267629,1736427050394,-500.0,0.0001082,2]
[348267630,1736427050403,-500.0,0.0001082,2]
[348267631,1736427050414,-577.050466,0.0001082,2]
[348267632,1736427050425,-500.0,0.0001082,2]
[348267633,1736427050435,-500.0,0.0001082,2]
[348267634,1736427050446,-452.4,0.0001082,2]
[348267635,1736427050457,-508.62,0.0001082,2]
[348267636,1736427050467,-605.54,0.0001082,2]
[348267637,1736427050477,-500.0,0.0001082,2]
[348267638,1736427050487,-670.66,0.0001082,2]
[348267639,1736427050496,-500.0,0.0001082,2]
[348267640,1736427050507,-1301.35,0.0001082,2]
[348267641,1736427050516,-500.0,0.0001082,2]
[348267642,1736427050525,-583.55,0.0001082,2]
[348267643,1736427050535,-628.84,0.0001082,2]
[348267644,1736427050546,-500.0,0.0001082,2]
[348267645,1736427050557,-500.0,0.0001082,2]
[348267646,1736427050567,-500.0,0.0001082,2]
[348267647,1736427050576,-597.75,0.0001082,2]
[348267648,1736427050586,-413.44,0.0001082,2]
[348267649,1736427050596,-1113.99,0.0001082,2]
[348267650,1736427050606,-2516.02,0.0001082,2]
[348267651,1736427050616,-503.95,0.0001082,2]
[348267652,1736427050626,-440.49,0.0001082,2]
[348267653,1736427050635,-500.0,0.00010821,2]
[348267654,1736427050645,-525.18,0.00010821,2]
[348267655,1736427050655,-198.4,0.00010821,2]
[348267656,1736427050664,-500.0,0.00010821,2]
[348267657,1736427050673,-500.0,0.00010821,2]
[348267658,1736427050683,-500.0,0.00010821,2]
[348267659,1736427050694,-541.4,0.00010872,2]
[348267660,1736427050704,-900.0,0.000109,3]
[348267661,1736427050714,-150.0,0.00010959,2]
[348267662,1736427050725,-500.0,0.00010986,2]
[348267663,1736427050735,-5321.13674112,0.00011,2]
[348267664,1736427050745,-1800.0,0.00011,4]
[348267665,1736427050756,-550.0,0.00011,2]
[348267666,1736427050766,-204.9242665,0.00011014,2]
[348267667,1736427050776,-150.0,0.00011047,2]
[348267668,1736427050788,-150.0,0.00011047,2]
[348267669,1736427050799,-1844.84,0.00011089,2]
[348267670,1736427050809,-813.62,0.00011089,2]
[348267671,1736427050819,-779.72,0.00011089,2]
[348267672,1736427050828,-500.0,0.00011089,2]
[348267673,1736427050838,-500.0,0.00011089,2]
[348267674,1736427050847,-500.0,0.00011089,2]
[348267675,1736427050857,-500.0,0.00011089,2]
[348267676,1736427050867,-500.0,0.00011089,2]
[348267677,1736427050876,-829.41,0.00011089,2]
[348267678,1736427050887,-500.0,0.00011089,2]
[348267679,1736427050897,-170.98,0.00011089,2]
[348267680,1736427050908,-568.63,0.00011089,2]
[348267681,1736427050919,-500.0,0.00011089,2]
[348267682,1736427050930,-677.84,0.00011089,2]
[348267683,1736427050939,-500.0,0.00011089,2]
[348267684,1736427050948,-500.0,0.00011089,2]
[348267685,1736427050958,-500.0,0.0001109,2]
[348267686,1736427050969,-500.0,0.0001109,2]
[348267687,1736427050979,-512.09,0.0001109,2]
[348267688,1736427050989,-500.0,0.0001109,2]
[348267689,1736427050999,-575.68,0.00011094,2]
[348267690,1736427051008,-500.0,0.00011094,2]
[348267691,1736427051018,-520.05,0.00011094,2]
[348267692,1736427051028,-500.0,0.00011094,2]
[348267693,1736427051038,-500.0,0.00011094,2]
[348267694,1736427051047,-500.0,0.00011094,2]
[348267695,1736427051058,-202.10572793,0.00011094,2]
[348267696,1736427051068,-500.0,0.00011094,2]
[348267697,1736427051077,-330.42,0.00011094,2]
[348267698,1736427051087,-500.0,0.00011094,2]
[348267699,1736427051096,-610.23,0.00011094,2]
[348267700,1736427051108,-500.0,0.00011094,2]
[348267701,1736427051118,-319.17,0.00011094,2]
[348267702,1736427051127,-500.0,0.00011094,2]
[348267703,1736427051137,-604.15,0.00011094,2]
[348267704,1736427051146,-284.01,0.00011094,2]
[348267705,1736427051156,-163.84,0.00011094,2]
[348267706,1736427051165,-500.0,0.00011094,2]
[348267707,1736427051174,-304.34,0.00011094,2]
[348267708,1736427051183,-227.82,0.00011094,2]
[348267709,1736427051193,-320.63,0.00011094,2]
[348267710,1736427051203,-601.55,0.00011094,2]
[348267711,1736427051213,-568.16,0.00011094,2]
[348267712,1736427051222,-500.0,0.00011094,2]
[348267713,1736427051232,-500.0,0.00011094,2]
[348267714,1736427051242,-500.0,0.00011094,2]
[348267715,1736427051251,-500.0,0.00011094,2]
[348267716,1736427051261,-500.0,0.00011094,2]
[348267717,1736427051271,-500.0,0.00011094,2]
[348267718,1736427051281,-297.84,0.00011094,2]
[348267719,1736427051291,-887.9,0.00011094,2]
[348267720,1736427051301,-500.0,0.00011094,2]
[348267721,1736427051310,-500.0,0.00011094,2]
[348267722,1736427051320,-500.0,0.00011094,2]
[348267723,1736427051331,-500.0,0.00011094,2]
[348267724,1736427051340,-632.85,0.00011094,2]
[348267725,1736427051350,-500.0,0.00011094,2]
[348267726,1736427051359,-500.0,0.00011094,2]
[348267727,1736427051368,-1233.81,0.00011094,2]
[348267728,1736427051378,-500.0,0.00011094,2]
[348267729,1736427051387,-158.38,0.00011094,2]
[348267730,1736427051397,-794.210395,0.00011094,2]
[348267731,1736427051406,-500.0,0.00011094,2]
[348267732,1736427051417,-610.65,0.00011094,2]
[348267733,1736427051427,-505.31,0.00011094,2]
[348267734,1736427051436,-537.08523154,0.00011094,2]
[348267735,1736427051446,-500.0,0.00011094,2]
[348267736,1736427051455,-500.0,0.00011094,2]
[348267737,1736427051465,-596.95,0.00011094,2]
[348267738,1736427051475,-500.0,0.00011094,2]
[348267739,1736427051484,-577.050466,0.00011094,2]
[348267740,1736427051493,-500.0,0.00011094,2]
[348267741,1736427051503,-509.52,0.00011094,2]
[348267742,1736427051512,-500.0,0.00011094,2]
[348267743,1736427051522,-508.62,0.00011094,2]
[348267744,1736427051531,-392.3,0.00011094,2]
[348267745,1736427051540,-500.0,0.00011094,2]
[348267746,1736427051550,-670.66,0.00011094,2]
[348267747,1736427051561,-1301.35,0.00011094,2]
[348267748,1736427051570,-500.0,0.00011094,2]
[348267749,1736427051580,-221.56,0.00011094,2]
[348267750,1736427051589,-628.84,0.00011094,2]
[348267751,1736427051599,-504.08,0.00011094,2]
[348267752,1736427051609,-228.46,0.00011094,2]
[348267753,1736427051619,-597.75,0.00011094,2]
[348267754,1736427051630,-1113.99,0.00011094,2]
[348267755,1736427051687,-2516.02,0.00011094,2]
[348267756,1736427051698,-831.94,0.00011094,2]
[348267757,1736427051709,-500.0,0.00011094,2]
[348267758,1736427051719,-500.0,0.00011095,2]
[348267759,1736427051729,-500.0,0.00011095,2]
[348267760,1736427051740,-500.0,0.00011095,2]
[348267761,1736427051751,-500.0,0.00011095,2]
[348267762,1736427051760,-2700.0,0.000111,4]
[348267763,1736427051769,-1000.0,0.000112,2]
[348267764,1736427051779,-3600.0,0.000112,4]
[348267765,1736427051787,-4500.0,0.000113,4]
[348267766,1736427051797,-1844.84,0.00011363,2]
[348267767,1736427051807,-813.62,0.00011363,2]
[348267768,1736427051817,-779.72,0.00011363,2]
[348267769,1736427051828,-500.0,0.00011363,2]
[348267770,1736427051838,-500.0,0.00011363,2]
[348267771,1736427051847,-500.0,0.00011363,2]
[348267772,1736427051858,-500.0,0.00011363,2]
[348267773,1736427051869,-500.0,0.00011363,2]
[348267774,1736427051879,-829.41,0.00011363,2]
[348267775,1736427051892,-500.0,0.00011363,2]
[348267776,1736427051901,-568.63,0.00011363,2]
[348267777,1736427051912,-500.0,0.00011363,2]
[348267778,1736427051922,-677.84,0.00011363,2]
[348267779,1736427051933,-500.0,0.00011363,2]
[348267780,1736427051942,-500.0,0.00011363,2]
[348267781,1736427051953,-500.0,0.00011364,2]
[348267782,1736427051966,-500.0,0.00011364,2]
[348267783,1736427051976,-500.0,0.00011364,2]
[348267784,1736427051985,-512.09,0.00011364,2]
[348267785,1736427051995,-500.0,0.00011364,2]
[348267786,1736427052005,-332.8,0.00011368,2]
[348267787,1736427052017,-333.95,0.00011368,2]
[348267788,1736427052027,-317.5,0.00011368,2]
[348267789,1736427052036,-317.72,0.00011368,2]
[348267790,1736427052046,-594.05,0.00011368,2]
[348267791,1736427052056,-500.0,0.00011368,2]
[348267792,1736427052066,-500.0,0.00011368,2]
[348267793,1736427052075,-285.29,0.00011368,2]
[348267794,1736427052084,-184.79,0.00011368,2]
[348267795,1736427052094,-568.16,0.00011368,2]
[348267796,1736427052103,-500.0,0.00011368,2]
[348267797,1736427052112,-500.0,0.00011368,2]
[348267798,1736427052122,-500.0,0.00011368,2]
[348267799,1736427052131,-586.49,0.00011368,2]
[348267800,1736427052140,-500.0,0.00011368,2]
[348267801,1736427052149,-611.49,0.00011368,2]
[348267802,1736427052158,-887.9,0.00011368,2]
[348267803,1736427052168,-500.0,0.00011368,2]
[348267804,1736427052177,-500.0,0.00011368,2]
[348267805,1736427052186,-632.85,0.00011368,2]
[348267806,1736427052196,-500.0,0.00011368,2]
[348267807,1736427052205,-1233.81,0.00011368,2]
[348267808,1736427052215,-500.0,0.00011368,2]
[348267809,1736427052224,-794.210395,0.00011368,2]
[348267810,1736427052234,-500.0,0.00011368,2]
[348267811,1736427052244,-610.65,0.00011368,2]
[348267812,1736427052254,-505.31,0.00011368,2]
[348267813,1736427052263,-500.0,0.00011368,2]
[348267814,1736427052272,-500.0,0.00011368,2]
[348267815,1736427052282,-500.0,0.00011368,2]
[348267816,1736427052291,-577.050466,0.00011368,2]
[348267817,1736427052301,-500.0,0.00011368,2]
[348267818,1736427052311,-509.52,0.00011368,2]
[348267819,1736427052320,-393.55641738,0.00011368,2]
[348267820,1736427052329,-508.62,0.00011368,2]
[348267821,1736427052339,-500.0,0.00011368,2]
[348267822,1736427052348,-670.66,0.00011368,2]
[348267823,1736427052360,-1301.35,0.00011368,2]
[348267824,1736427052369,-500.0,0.00011368,2]
[348267825,1736427052379,-628.84,0.00011368,2]
[348267826,1736427052388,-597.75,0.00011368,2]
[348267827,1736427052397,-1113.99,0.00011368,2]
[348267828,1736427052407,-2516.02,0.00011368,2]
[348267829,1736427052416,-831.94,0.00011368,2]
[348267830,1736427052425,-500.0,0.00011369,2]
[348267831,1736427052434,-500.0,0.00011369,2]
[348267832,1736427052443,-500.0,0.00011369,2]
[348267833,1736427052453,-500.0,0.00011369,2]
[348267834,1736427052464,-900.0,0.000114,4]
[348267835,1736427052474,-346.91042057,0.00011453,2]
[348267836,1736427052483,-151.209,0.0001146,2]
[348267837,1736427052492,-1267.0,0.0001146,2]
[348267838,1736427052501,-257.472,0.0001146,2]
[348267839,1736427052510,-641.338,0.0001146,2]
[348267840,1736427052520,-566.0,0.0001146,2]
[348267841,1736427052529,-1860.0,0.0001146,2]
[348267842,1736427052538,-1039.949,0.0001146,2]
[348267843,1736427052547,-1258.0,0.0001146,2]
[348267844,1736427052557,-834.0,0.0001146,2]
[348267845,1736427052567,-3784.104,0.0001146,2]
[348267846,1736427052575,-3976.0,0.0001146,2]
[348267847,1736427052584,-552.585,0.0001146,2]
[348267848,1736427052593,-151.255,0.0001146,2]
[348267849,1736427052602,-3895.0,0.0001146,2]
[348267850,1736427052612,-9619.0,0.0001146,2]
[348267851,1736427052621,-1103.0,0.0001146,2]
[348267852,1736427052630,-204.9242665,0.00011486,2]
[348267853,1736427052639,-1239.83,0.00011499,2]
[348267854,1736427052649,-900.0,0.000115,4]
[348267855,1736427052658,-332.06,0.00011507,2]
[348267856,1736427052667,-900.0,0.000116,4]
[348267857,1736427052677,-1844.84,0.00011637,2]
[348267858,1736427052686,-813.62,0.00011637,2]
[348267859,1736427052695,-779.72,0.00011637,2]
[348267860,1736427052704,-500.0,0.00011637,2]
[348267861,1736427052714,-500.0,0.00011637,2]
[348267862,1736427052723,-500.0,0.00011637,2]
[348267863,1736427052733,-500.0,0.00011637,2]
[348267864,1736427052742,-500.0,0.00011637,2]
[348267865,1736427052752,-500.0,0.00011637,2]
[348267866,1736427052761,-829.41,0.00011637,2]
[348267867,1736427052771,-500.0,0.00011637,2]
[348267868,1736427052780,-568.63,0.00011637,2]
[348267869,1736427052789,-500.0,0.00011637,2]
[348267870,1736427052798,-677.84,0.00011637,2]
[348267871,1736427052808,-500.0,0.00011637,2]
[348267872,1736427052817,-500.0,0.00011637,2]
[348267873,1736427052827,-500.0,0.00011638,2]
[348267874,1736427052836,-500.0,0.00011638,2]
[348267875,1736427052845,-512.09,0.00011638,2]
[348267876,1736427052854,-500.0,0.00011638,2]
[348267877,1736427052863,-173.45,0.00011642,2]
[348267878,1736427052872,-481.3,0.00011642,2]
[348267879,1736427052882,-568.16,0.00011642,2]
[348267880,1736427052895,-500.0,0.00011642,2]
[348267881,1736427052904,-529.00646423,0.00011642,2]
[348267882,1736427052913,-500.0,0.00011642,2]
[348267883,1736427052923,-501.75,0.00011642,2]
[348267884,1736427052933,-887.9,0.00011642,2]
[348267885,1736427052942,-500.0,0.00011642,2]
[348267886,1736427052952,-500.0,0.00011642,2]
[348267887,1736427052962,-632.85,0.00011642,2]
[348267888,1736427052972,-500.0,0.00011642,2]
[348267889,1736427052983,-1233.81,0.00011642,2]
[348267890,1736427052992,-500.0,0.00011642,2]
[348267891,1736427053002,-794.210395,0.00011642,2]
[348267892,1736427053011,-500.0,0.00011642,2]
[348267893,1736427053020,-610.65,0.00011642,2]
[348267894,1736427053030,-505.31,0.00011642,2]
[348267895,1736427053039,-500.0,0.00011642,2]
[348267896,1736427053049,-500.0,0.00011642,2]
[348267897,1736427053059,-500.0,0.00011642,2]
[348267898,1736427053069,-577.050466,0.00011642,2]
[348267899,1736427053078,-500.0,0.00011642,2]
[348267900,1736427053088,-509.52,0.00011642,2]
[348267901,1736427053097,-508.62,0.00011642,2]
[348267902,1736427053106,-500.0,0.00011642,2]
[348267903,1736427053116,-670.66,0.00011642,2]
[348267904,1736427053126,-1301.35,0.00011642,2]
[348267905,1736427053137,-500.0,0.00011642,2]
[348267906,1736427053146,-628.84,0.00011642,2]
[348267907,1736427053155,-597.75,0.00011642,2]
[348267908,1736427053165,-1113.99,0.00011642,2]
[348267909,1736427053174,-2516.02,0.00011642,2]
[348267910,1736427053184,-831.94,0.00011642,2]
[348267911,1736427053193,-500.0,0.00011643,2]
[348267912,1736427053203,-500.0,0.00011643,2]
[348267913,1736427053214,-500.0,0.00011643,2]
[348267914,1736427053224,-500.0,0.00011643,2]
[348267915,1736427053234,-150.0,0.0001166,2]
[348267916,1736427053243,-156.925,0.0001168,2]
[348267917,1736427053253,-900.0,0.000117,4]
[348267918,1736427053263,-618.34,0.00011715,2]
[348267919,1736427053273,-1231.0,0.000118,4]
[348267920,1736427053282,-1844.84,0.00011911,2]
[348267921,1736427053293,-813.62,0.00011911,2]
[348267922,1736427053304,-779.72,0.00011911,2]
[348267923,1736427053314,-500.0,0.00011911,2]
[348267924,1736427053323,-500.0,0.00011911,2]
[348267925,1736427053334,-500.0,0.00011911,2]
[348267926,1736427053343,-500.0,0.00011911,2]
[348267927,1736427053353,-500.0,0.00011911,2]
[348267928,1736427053363,-500.0,0.00011911,2]
[348267929,1736427053373,-829.41,0.00011911,2]
[348267930,1736427053383,-200.37440015,0.00011911,2]